bitfinex/quotes_ETHUSD_20230701
["timestamp","ask_amount","ask_price","bid_price","bid_amount"]
[1688208752185,0.41378184,1920.8,1920.5,13.01732]
[1688208752484,5.22245602,1920.9,1920.5,13.01732]
[1688208752711,5.20616,1920.8,1920.5,13.01732]
[1688208753189,0.44342735,1920.9,1920.5,13.01732]
[1688208753370,0.44342735,1920.9,1920.5,14.7095957]
[1688208754085,0.44342735,1920.9,1920.5,16.9716957]
[1688208754669,0.01651602,1920.9,1920.5,16.9716957]
[1688208759465,0.01651602,1920.9,1920.5,18.3296957]
[1688208764789,1.45722428,1921.1,1920.5,23.5366657]
[1688208765080,1.45722428,1921.1,1920.7,13.01572]
[1688208765506,1.45722428,1921.1,1920.7,14.36572]
[1688208765683,1.45722428,1921.1,1920.8,1.358]
[1688208765875,1.042067,1921.1,1920.9,13.01472]
[1688208766075,1.042067,1921.1,1920.9,14.36772]
[1688208766276,1.042067,1921.1,1921.0,1.436772]
[1688208766504,1.042067,1921.1,1921.0,14.450822]
[1688208768605,0.12903707,1921.5,1921.0,15.808822]
[1688208768810,0.12903707,1921.5,1921.1,1.358]
[1688208768976,0.12903707,1921.5,1921.2,13.01255]
[1688208769920,0.33738907,1921.5,1921.2,13.01255]
[1688208771813,5.54166907,1921.5,1921.2,10.41004]
[1688208772377,0.33738907,1921.5,1921.2,5.20502]
[1688208772789,0.33738907,1921.5,1921.2,10.4101]
[1688208774408,0.33738907,1921.5,1921.2,13.01264]
[1688208776602,0.33738907,1921.5,1921.2,14.814987]
[1688208777392,0.33738907,1921.5,1921.2,13.01264]
[1688208778706,0.33738907,1921.5,1921.2,12.883048]
[1688208783248,13.34836907,1921.5,1921.0,5.20554]
[1688208783520,13.34836907,1921.5,1921.0,5.20561]
[1688208783521,1.358,1921.4,1921.0,5.20561]
[1688208783815,6.56262,1921.4,1921.0,5.20561]
[1688208784017,0.656262,1921.3,1921.0,5.20561]
[1688208784792,0.656262,1921.3,1921.0,10.41123]
[1688208785004,5.861182,1921.3,1921.0,5.20561]
[1688208785325,5.861182,1921.3,1920.9,13.01449]
[1688208785625,10.40944,1921.4,1920.9,13.01449]
[1688208785800,12.04864,1921.4,1920.9,13.01449]
[1688208786004,6.84387,1921.4,1920.9,13.01449]
[1688208787142,6.84387,1921.4,1920.9,14.72839]
[1688208788231,12.04865,1921.4,1920.9,14.72839]
[1688208791940,6.84387,1921.4,1920.9,14.72839]
[1688208792510,6.84387,1921.4,1920.9,16.05994237]
[1688208793736,12.0484,1921.4,1920.9,14.72839]
[1688208795713,12.0484,1921.4,1920.9,12.12545]
[1688208796329,12.0484,1921.4,1920.9,14.72839]
[1688208796522,6.84373,1921.4,1920.9,16.08639]
[1688208797789,1.6392,1921.4,1920.9,16.08639]
[1688208797963,5.42933802,1921.5,1921.0,1.608639]
[1688208798111,0.22486802,1921.5,1921.1,13.01308]
[1688208798835,0.22486802,1921.5,1921.1,17.18648]
[1688208800329,0.208352,1921.5,1921.1,17.18648]
[1688208800546,0.208352,1921.5,1921.2,1.718648]
[1688208800751,0.208352,1921.5,1921.3,10.4096]
[1688208801948,5.412652,1921.5,1921.3,10.4096]
[1688208802157,5.412652,1921.5,1921.3,5.2048]
[1688208802965,10.616952,1921.5,1921.3,5.2048]
[1688208805330,10.616952,1921.5,1921.3,5.20477]
[1688208805531,5.412652,1921.5,1921.3,10.40957]
[1688208806032,0.208352,1921.5,1921.3,14.31318]
[1688208806259,0.208352,1921.5,1921.3,11.71078]
[1688208806537,0.208352,1921.5,1921.3,14.31318]
[1688208826004,0.087862,1921.6,1921.3,14.31318]
[1688208826210,0.087862,1921.6,1921.4,0.84937793]
[1688208826411,0.087862,1921.6,1921.5,10.40852]
[1688208826587,0.087862,1921.6,1921.5,5.20426]
[1688208827213,1.129482,1921.6,1921.5,5.20426]
[1688208827636,6.333472,1921.6,1921.5,5.20426]
[1688208827932,0.41904313,1921.7,1921.5,8.93264484]
[1688208828233,31.388,1922.4,1921.6,5.73623374]
[1688208828234,5.20199,1922.4,1921.6,5.73623374]
[1688208828537,1.5301,1922.4,1921.8,13.00835]
[1688208829102,2.571347,1922.4,1921.8,13.00835]
[1688208829304,2.571347,1922.4,1921.9,1.300835]
[1688208829496,2.571347,1922.4,1922.0,13.00692]
[1688208829726,1.041247,1922.4,1922.0,13.00692]
[1688208832405,0.42086474,1922.5,1922.0,13.00692]
[1688208832734,3.5095,1922.6,1922.2,13.00577]
[1688208833124,4.380557,1922.6,1922.2,13.00577]
[1688208833337,5.421747,1922.6,1922.2,13.00577]
[1688208833639,1.912247,1922.6,1922.2,13.00577]
[1688208833799,1.04119,1922.6,1922.2,13.00577]
[1688208834206,1.4641266,1922.6,1922.2,13.00577]
[1688208837270,0.4229366,1922.6,1922.2,13.00577]
[1688208837769,0.13097006,1922.7,1922.2,13.00577]
[1688208838271,1.17205906,1922.7,1922.2,13.00577]
[1688208838468,1.17205906,1922.7,1922.3,1.300577]
[1688208838650,1.17205906,1922.7,1922.4,13.00442]
[1688208839663,1.041089,1922.7,1922.4,14.36242]
[1688208839946,0.40895406,1922.8,1922.4,19.56425]
[1688208840148,10.40012,1923.1,1922.7,10.40166]
[1688208840366,1.040966,1922.9,1922.7,13.00216]
[1688208848976,0.54000326,1923.1,1922.7,13.00216]
[1688208849292,1.48942161,1923.1,1922.7,13.00216]
[1688208849903,6.68954161,1923.1,1922.7,13.00216]
[1688208850290,7.73047361,1923.1,1922.7,13.00216]
[1688208850885,12.93059361,1923.1,1922.7,13.00216]
[1688208853989,12.93059361,1923.1,1922.7,10.40166]
[1688208854727,3.16752184,1923.0,1922.0,0.5]
[1688208855024,3.16752184,1923.0,1922.3,10.40397]
[1688208855025,10.40202,1922.7,1922.3,10.40397]
[1688208855490,10.40202,1922.7,1922.3,5.20198]
[1688208855491,13.00252,1922.7,1922.3,5.20198]
[1688208855697,15.69004184,1922.7,1922.2,5.20219]
[1688208855914,5.20188,1922.4,1922.1,10.40487]
[1688208856517,6.55971,1922.5,1922.1,13.00619]
[1688208856914,11.76144,1922.5,1922.1,13.00619]
[1688208857305,1.358,1922.5,1922.1,13.00619]
[1688208857897,9.46893091,1922.6,1922.1,13.00619]
[1688208858110,8.37929,1922.6,1922.1,14.566952]
[1688208858719,13.58065,1922.6,1922.1,14.566952]
[1688208859041,13.58054,1922.6,1922.1,14.566952]
[1688208859956,8.37918,1922.6,1922.1,14.566952]
[1688208860261,13.58046,1922.6,1922.1,13.00619]
[1688208860465,1.358,1922.4,1921.9,2.60155]
[1688208860626,1.358,1922.3,1922.0,10.40563]
[1688208861649,1.358,1922.3,1922.0,13.00708]
[1688208861941,1.358,1922.3,1922.0,10.40563]
[1688208862706,1.358,1922.3,1921.8,3.7802]
[1688208862707,1.358,1922.2,1921.8,1.8256]
[1688208862930,6.57705602,1922.2,1921.8,12.23242]
[1688208863133,1.37451602,1922.2,1921.8,14.83414]
[1688208863515,0.01651602,1922.2,1921.8,16.317554]
[1688208863715,5.21890602,1922.2,1921.8,16.317554]
[1688208864550,0.01651602,1922.2,1921.8,16.317554]
[1688208864842,16.40778184,1922.3,1921.8,16.317554]
[1688208864843,11.20545184,1922.3,1921.8,16.317554]
[1688208866468,1.9677,1922.3,1921.8,16.317554]
[1688208866673,1.9677,1922.3,1922.0,13.00713]
[1688208866843,13.30441,1922.5,1922.0,13.00713]
[1688208867047,15.99193184,1922.5,1922.0,14.71013]
[1688208867474,1.358,1922.4,1922.0,14.71013]
[1688208867770,6.55992,1922.4,1922.0,14.71013]
[1688208867972,6.55992,1922.4,1922.0,16.34431854]
[1688208868162,11.76184,1922.4,1922.0,16.34431854]
[1688208869352,10.40384,1922.4,1922.0,16.34431854]
[1688208876994,5.20192,1922.4,1922.0,16.34431854]
[1688208878273,1.77744029,1922.6,1922.0,16.34431854]
[1688208878499,1.77744029,1922.6,1922.1,1.63443185]
[1688208878700,7.14974,1922.7,1922.2,13.00557]
[1688208879208,1.9486,1922.7,1922.2,13.00557]
[1688208879402,1.9486,1922.7,1922.2,18.18367]
[1688208879581,1.9486,1922.7,1922.3,1.818367]
[1688208879771,7.14972,1922.7,1922.4,10.40354]
[1688208880368,7.56218981,1922.7,1922.4,10.40354]
[1688208880574,5.61358981,1922.7,1922.4,10.40354]
[1688208882421,5.61358981,1922.7,1922.2,7.01214]
[1688208882422,14.77320981,1922.7,1922.2,7.01214]
[1688208882571,16.25053079,1922.7,1922.2,7.01214]
[1688208882775,14.89253079,1922.7,1922.2,12.21451]
[1688208884800,14.89253079,1922.7,1922.2,14.81569]
[1688208884996,13.41520981,1922.7,1922.2,14.81569]
[1688208886002,2.68752184,1922.6,1921.8,0.41862747]
[1688208886210,10.40383,1922.4,1921.9,5.20306]
[1688208886377,13.00474,1922.4,1922.0,10.40581]
[1688208886577,10.40383,1922.4,1922.0,10.40581]
[1688208886888,10.40383,1922.4,1922.0,13.00726]
[1688208887786,5.2019,1922.4,1922.0,13.00726]
[1688208888402,12.40093,1922.5,1922.0,13.00726]
[1688208888602,18.36329102,1922.5,1922.0,13.00726]
[1688208894622,18.78503621,1922.5,1922.0,13.00726]
[1688208896439,17.43303621,1922.5,1922.0,13.00726]
[1688208897536,7.02960621,1922.5,1922.0,13.00726]
[1688208897735,2.41924519,1922.5,1922.0,13.00726]
[1688208897898,0.42174519,1922.5,1922.0,14.36526]
[1688208898103,5.20111,1922.7,1922.0,14.36526]
[1688208898337,13.51587,1922.6,1922.0,18.12726]
[1688208898525,7.88889184,1922.6,1922.0,20.200135]
[1688208898724,7.88889184,1922.6,1922.0,20.070624]
[1688208899098,5.20137,1922.6,1922.0,20.070624]
[1688208899504,10.40276,1922.6,1922.0,20.070624]
[1688208901337,13.0034,1922.6,1922.0,20.070624]
[1688208901543,1.30034,1922.5,1922.0,16.639749]
[1688208901711,6.50207,1922.5,1922.0,16.639749]
[1688208902412,5.20173,1922.5,1922.0,16.639749]
[1688208902922,10.40346,1922.5,1922.0,16.639749]
[1688208904446,5.20173,1922.5,1922.0,16.639749]
[1688208904645,10.40346,1922.5,1922.0,16.639749]
[1688208910351,2.68752184,1922.4,1921.7,3.01642671]
[1688208910552,2.68752184,1922.4,1921.6,2.71432163]
[1688208910553,0.26875218,1922.3,1921.6,2.71432163]
[1688208910763,15.69349184,1922.2,1921.6,12.36655]
[1688208910946,15.69349184,1922.2,1921.6,14.96854]
[1688208910947,13.00597,1922.2,1921.6,14.96854]
[1688208911540,13.00597,1922.2,1921.6,16.32654]
[1688208911860,10.40478,1922.2,1921.6,16.32654]
[1688208912054,10.40478,1922.2,1921.6,18.390272]
[1688208912259,10.40478,1922.2,1921.7,1.353]
[1688208912448,10.40478,1922.2,1921.8,10.40665]
[1688208914170,15.69348184,1922.2,1921.5,1.76738695]
[1688208914333,15.69348184,1922.2,1921.5,10.40848]
[1688208914334,1.56934818,1922.1,1921.5,10.40848]
[1688208914660,10.40624,1922.0,1921.5,13.01061]
[1688208915857,11.447741,1922.0,1921.5,13.01061]
[1688208916074,1.041501,1922.0,1921.5,13.01061]
[1688208916998,1.041501,1922.0,1921.6,2.68752184]
[1688208917273,5.60904759,1922.5,1921.7,15.87975218]
[1688208917438,5.60904759,1922.5,1921.7,22.42297402]
[1688208917633,5.20166,1922.5,1921.7,22.69071373]
[1688208917856,11.444581,1922.5,1921.7,22.69071373]
[1688208918485,14.045361,1922.5,1921.7,22.42297402]
[1688208918779,14.045361,1922.5,1922.0,10.40576]
[1688208919587,13.00597,1922.2,1921.7,12.5116]
[1688208919878,10.40478,1922.2,1921.7,15.11346]
[1688208922156,10.40478,1922.2,1921.7,16.46346]
[1688208922899,14.652976,1922.2,1921.7,8.65815]
[1688208923350,14.652976,1922.2,1921.7,5.20365]
[1688208924484,14.652976,1922.2,1921.7,10.40737]
[1688208924647,12.051796,1922.2,1921.7,13.00923]
[1688208925271,6.849406,1922.2,1921.7,13.00923]
[1688208925642,12.051796,1922.2,1921.7,13.00923]
[1688208927048,14.652976,1922.2,1921.7,13.00923]
[1688208927293,1.3792327,1922.1,1921.7,13.00923]
[1688208927456,5.20296,1922.0,1921.7,13.00923]
[1688208927862,5.20296,1922.0,1921.7,10.40737]
[1688208930094,5.20283,1922.1,1921.7,10.40737]
[1688208930988,5.20283,1922.1,1921.7,13.00923]
[1688208931156,5.20283,1922.1,1921.7,14.688903]
[1688208931559,8.68302602,1922.3,1921.7,16.038903]
[1688208931755,13.88520602,1922.3,1921.8,1.6518]
[1688208932067,14.30557955,1922.3,1921.9,10.40608]
[1688208932265,14.30557955,1922.3,1921.9,10.41015915]
[1688208932958,12.71467955,1922.3,1921.9,10.41015915]
[1688208933862,12.71467955,1922.3,1921.9,10.4074823]
[1688208936705,15.31572955,1922.3,1921.9,10.4074823]
[1688208936929,0.42037353,1922.3,1921.9,14.47516653]
[1688208937068,6.242891,1922.5,1921.9,15.83316653]
[1688208937069,6.242861,1922.5,1921.9,15.83316653]
[1688208937266,5.20188,1922.4,1921.9,15.83316653]
[1688208937887,5.20188,1922.4,1921.9,17.90366653]
[1688208938199,1.041291,1922.5,1922.0,1.358]
[1688208938503,1.041291,1922.5,1922.1,10.405]
[1688208938665,1.041291,1922.5,1922.1,11.841433]
[1688208938860,1.46406554,1922.5,1922.1,11.841433]
[1688208939085,1.46406554,1922.5,1922.1,13.509033]
[1688208939283,1.46406554,1922.5,1922.2,0.00404965]
[1688208939481,1.46406554,1922.5,1922.2,5.20627965]
[1688208939698,1.46406554,1922.5,1922.2,6.55756092]
[1688208939979,1.46406554,1922.5,1922.2,11.75993092]
[1688208941218,6.66564554,1922.5,1922.2,11.75993092]
[1688208943115,1.46406554,1922.5,1922.2,11.75993092]
[1688208943997,6.66563554,1922.5,1922.2,11.75993092]
[1688208945197,11.86720554,1922.5,1922.2,10.40864965]
[1688208945727,11.86720554,1922.5,1922.2,5.20627965]
[1688208946100,11.86720554,1922.5,1922.2,0.00404965]
[1688208946299,14.46798554,1922.5,1922.0,5.20277]
[1688208946517,14.46798554,1922.5,1922.0,6.99697]
[1688208946826,15.91478409,1922.5,1922.0,6.99697]
[1688208947327,15.91478409,1922.5,1922.1,0.00405948]
[1688208947528,13.00525,1922.3,1922.1,0.00405948]
[1688208948316,13.00525,1922.3,1921.9,5.20304]
[1688208948623,13.00525,1922.3,1921.9,10.40601]
[1688208948818,14.58470015,1922.3,1921.9,10.40601]
[1688208949449,14.58470015,1922.3,1922.0,0.00406931]
[1688208950624,14.58470015,1922.3,1922.0,5.20696931]
[1688208950825,11.98365015,1922.3,1922.0,5.20696931]
[1688208953718,11.98365015,1922.3,1922.0,0.00406931]
[1688208953918,1.19836502,1922.2,1922.0,0.00406931]
[1688208954118,10.4042,1922.3,1922.0,0.00406931]
[1688208956974,10.82136987,1922.3,1922.0,0.00406931]
[1688208958042,0.41716987,1922.3,1922.0,0.00406931]
[1688208958257,1.041291,1922.5,1922.0,13.00727]
[1688208958963,6.242851,1922.5,1922.0,13.00727]
[1688208959168,6.242851,1922.5,1922.0,18.393255]
[1688208959374,11.444411,1922.5,1922.1,0.00405948]
[1688208959669,11.444411,1922.5,1922.1,5.20651948]
[1688208962578,11.444411,1922.5,1922.1,10.40915948]
[1688208963180,14.045191,1922.5,1922.1,10.40915948]
[1688208970882,1.041291,1922.5,1922.1,10.40915948]
[1688208971080,1.041291,1922.5,1922.2,1.04091595]
[1688208971382,1.041291,1922.5,1922.3,10.4042]
[1688208972398,1.041291,1922.5,1922.4,0.00387013]
[1688208972598,1.041291,1922.5,1922.4,5.20570013]
[1688208977120,5.2006,1922.9,1922.4,14.36644013]
[1688208977297,5.2006,1922.9,1922.5,1.43664401]
[1688208977298,10.40122,1922.9,1922.5,1.43664401]
[1688208977484,10.40122,1922.9,1922.6,10.40246]
[1688208978215,11.442206,1922.9,1922.6,5.20123]
[1688208978392,11.442206,1922.9,1922.7,0.00383858]
[1688208979283,11.85619329,1922.9,1922.7,5.20097]
[1688208980091,6.65557329,1922.9,1922.7,5.20097]
[1688208980291,6.65557329,1922.9,1922.8,0.00382876]
[1688208987820,6.241586,1922.9,1922.8,0.00382876]
[1688208988126,7.3857816,1922.9,1922.8,0.00382876]
[1688208991304,6.241586,1922.9,1922.8,0.00382876]
[1688209003576,6.241586,1922.9,1922.6,10.40231]
[1688209004473,6.241586,1922.9,1922.7,0.00383858]
[1688209004841,11.442206,1922.9,1922.7,0.00383858]
[1688209005469,11.442206,1922.9,1922.6,10.40231]
[1688209006288,18.17523939,1922.9,1921.9,3.5]
[1688209006593,18.17523939,1922.9,1922.7,0.00383858]
[1688209006947,14.51195,1922.8,1922.7,0.00383858]
[1688209007153,15.86995,1922.8,1922.7,0.00383858]
[1688209007396,15.86995,1922.8,1922.1,10.40505]
[1688209007699,10.40283,1922.6,1922.1,10.40505]
[1688209008388,10.40283,1922.6,1922.2,0.00388773]
[1688209008553,10.40283,1922.6,1922.2,5.20623773]
[1688209009085,10.40283,1922.6,1922.2,6.86913773]
[1688209010286,10.40283,1922.6,1922.2,12.07150773]
[1688209010583,10.40283,1922.6,1922.2,6.86913773]
[1688209012386,10.40283,1922.6,1922.2,1.66678773]
[1688209013870,10.40283,1922.6,1922.2,6.86911773]
[1688209015015,15.852394,1922.6,1922.2,0.00388773]
[1688209015492,17.406194,1922.6,1922.1,5.2025]
[1688209015721,16.050194,1922.6,1922.1,5.2025]
[1688209016193,15.950194,1922.6,1922.1,5.2025]
[1688209016395,5.20188,1922.4,1922.2,0.00388276]
[1688209016763,10.40376,1922.4,1922.2,0.00388276]
[1688209017511,10.35376,1922.4,1922.1,10.405]
[1688209017712,5.15188,1922.4,1922.1,5.2025]
[1688209017883,10.35371,1922.4,1922.0,8.78114]
[1688209018065,10.35371,1922.4,1922.1,5.20262]
[1688209018562,10.35371,1922.4,1922.2,0.00388773]
[1688209018767,10.35371,1922.4,1922.0,13.98389]
[1688209019497,10.35371,1922.4,1922.1,0.00374803]
[1688209025806,12.95462,1922.4,1922.1,0.00374803]
[1688209026003,13.00592,1922.2,1922.1,0.00374803]
[1688209026394,10.40474,1922.2,1921.8,12.17763]
[1688209026569,10.40474,1922.2,1921.8,6.97426]
[1688209027071,10.40474,1922.2,1921.8,1.7709]
[1688209027489,10.40474,1922.2,1921.9,0.0037677]
[1688209027695,11.8348682,1922.2,1921.9,0.0037677]
[1688209028503,11.8348682,1922.2,1921.8,1.7709]
[1688209029424,11.8348682,1922.2,1921.9,0.0037677]
[1688209029781,5.20237,1922.2,1921.9,5.2069477]
[1688209029977,10.40474,1922.2,1921.9,5.2069477]
[1688209030177,5.20237,1922.2,1921.9,10.4101277]
[1688209030480,10.40474,1922.2,1921.9,10.4101277]
[1688209031786,5.20237,1922.2,1921.9,10.4101277]
[1688209032509,10.40474,1922.2,1921.9,10.4101277]
[1688209033180,5.20237,1922.2,1921.9,10.4101277]
[1688209035513,3.46001602,1922.4,1921.9,13.06931247]
[1688209035711,7.12892602,1922.4,1921.9,15.67090247]
[1688209035934,5.21842602,1922.4,1921.9,15.67090247]
[1688209036120,5.20137,1922.6,1922.1,1.358]
[1688209036315,5.20137,1922.6,1922.2,5.20223]
[1688209036614,5.20137,1922.6,1922.2,10.4046]
[1688209037113,5.20137,1922.6,1922.2,12.0938]
[1688209037521,5.20137,1922.6,1922.3,0.00372837]
[1688209037884,3.5505,1922.7,1922.3,0.00372837]
[1688209038088,5.62715302,1922.7,1922.3,11.09739421]
[1688209038322,5.62715302,1922.7,1922.3,13.69844421]
[1688209038323,10.82816302,1922.7,1922.3,13.69844421]
[1688209038500,10.40202,1922.7,1922.3,13.69844421]
[1688209041293,5.20101,1922.7,1922.3,13.69844421]
[1688209042296,5.20101,1922.7,1922.4,11.77324442]
[1688209043394,5.20101,1922.7,1922.5,0.00370871]
[1688209044015,10.40202,1922.7,1922.5,0.00370871]
[1688209045509,13.00252,1922.7,1922.5,0.00370871]
[1688209046426,13.00252,1922.7,1922.3,10.40393]
[1688209046631,13.00252,1922.7,1922.3,5.20195]
[1688209047196,14.34387106,1922.7,1922.3,5.20195]
[1688209047407,14.34387106,1922.7,1922.4,0.00371854]
[1688209050208,13.00252,1922.7,1922.4,5.20550854]
[1688209051753,5.20101,1922.7,1922.4,5.20550854]
[1688209051906,5.20101,1922.7,1922.4,10.40733854]
[1688209052216,10.40202,1922.7,1922.4,10.40733854]
[1688209055317,10.40202,1922.7,1922.4,5.20550854]
[1688209055523,5.20101,1922.7,1922.4,5.20550854]
[1688209056146,10.40202,1922.7,1922.4,10.40733854]
[1688209057013,5.20101,1922.7,1922.4,5.20550854]
[1688209057206,5.61183058,1922.8,1922.5,1.353]
[1688209057411,5.20084,1922.8,1922.5,1.35670871]
[1688209057611,5.20084,1922.8,1922.6,10.40256]
[1688209058562,5.20084,1922.8,1922.7,0.00368905]
[1688209058843,5.20084,1922.8,1922.7,5.20469905]
[1688209059210,1.040986,1922.9,1922.7,10.40570905]
[1688209059710,1.040986,1922.9,1922.7,5.20469905]
[1688209059915,6.241586,1922.9,1922.7,5.20469905]
[1688209060714,11.442186,1922.9,1922.7,5.20469905]
[1688209064616,6.241586,1922.9,1922.7,5.20469905]
[1688209064813,11.442186,1922.9,1922.7,5.20469905]
[1688209065859,6.241586,1922.9,1922.7,5.20469905]
[1688209068496,6.241586,1922.9,1922.7,10.40570905]
[1688209069143,6.241586,1922.9,1922.7,5.20469905]
[1688209069519,11.442186,1922.9,1922.7,5.20469905]
[1688209069721,6.241586,1922.9,1922.7,5.20469905]
[1688209073034,1.040986,1922.9,1922.7,5.20469905]
[1688209073746,6.241476,1922.9,1922.7,5.20469905]
[1688209074664,1.040986,1922.9,1922.7,5.20469905]
[1688209074971,0.40934275,1923.0,1922.7,13.78674096]
[1688209075157,0.40934275,1923.0,1922.7,15.14474096]
[1688209075464,5.33138161,1923.1,1922.7,15.14474096]
[1688209075465,5.19994,1923.1,1922.7,15.14474096]
[1688209075641,6.240788,1923.1,1922.7,15.14474096]
[1688209076269,6.240788,1923.1,1922.7,16.91214096]
[1688209076435,6.240788,1923.1,1922.8,1.6912141]
[1688209076635,6.240788,1923.1,1922.9,5.20047]
[1688209077471,6.240788,1923.1,1923.0,0.00365958]
[1688209077670,11.440798,1923.1,1923.0,0.00365958]
[1688209077866,11.85183571,1923.1,1923.0,0.00365958]
[1688209078372,1.45188571,1923.1,1923.0,0.00365958]
[1688209078536,0.41103771,1923.1,1923.0,6.24431154]
[1688209078936,10.52785579,1923.2,1923.0,6.24431154]
[1688209079675,11.56866479,1923.2,1923.0,6.24431154]
[1688209081337,11.99473327,1923.2,1923.0,5.20385958]
[1688209081545,6.79489327,1923.2,1923.0,10.40405958]
[1688209081874,11.99471327,1923.2,1923.0,5.20385958]
[1688209082641,11.99471327,1923.2,1923.0,0.00365958]
[1688209084750,11.99471327,1923.2,1923.0,5.20383958]
[1688209085991,6.79489327,1923.2,1923.0,5.20383958]
[1688209086167,1.46687748,1923.2,1923.0,11.61083554]
[1688209086369,0.42606848,1923.2,1923.0,6.41063554]
[1688209086784,6.240223,1923.3,1923.0,6.41063554]
[1688209087080,6.240223,1923.3,1923.0,11.61083554]
[1688209087464,1.17398009,1923.3,1923.0,6.41063554]
[1688209087981,1.14097244,1923.3,1923.1,0.64106355]
[1688209088494,1.14097244,1923.3,1923.2,0.00363993]
[1688209089493,6.34036244,1923.3,1923.2,0.00363993]
[1688209089698,11.53975244,1923.3,1923.2,0.00363993]
[1688209090502,11.53975244,1923.3,1923.0,1.20679596]
[1688209091485,11.53975244,1923.3,1923.1,0.00364976]
[1688209094296,14.13944244,1923.3,1923.1,0.00364976]
[1688209094502,14.13944244,1923.3,1922.9,5.2003]
[1688209094703,14.13944244,1923.3,1922.9,6.40951641]
[1688209095565,14.13944244,1923.3,1923.0,0.00365958]
[1688209097381,11.95173811,1923.3,1922.9,5.20032]
[1688209097570,14.55142811,1923.3,1922.9,10.40079]
[1688209097775,11.95173811,1923.3,1922.9,11.87002541]
[1688209098175,11.95173811,1923.3,1922.9,13.52852541]
[1688209098534,11.95173811,1923.3,1923.0,0.00365958]
[1688209098706,11.95173811,1923.3,1923.0,5.20385958]
[1688209100406,11.95173811,1923.3,1923.0,0.00365958]
[1688209118835,11.95173811,1923.3,1923.0,5.20383958]
[1688209119033,11.95173811,1923.3,1923.0,6.55702908]
[1688209120305,11.95173811,1923.3,1923.0,5.20383958]
[1688209120727,6.75234811,1923.3,1923.0,5.20383958]
[1688209120946,1.55295811,1923.3,1923.0,5.20383958]
[1688209121236,1.55295811,1923.3,1923.0,10.40403958]
[1688209122645,0.41198567,1923.3,1923.0,11.76203958]
[1688209122856,0.41198567,1923.3,1923.1,1.17620396]
[1688209123132,5.21549602,1923.5,1923.1,6.37602396]
[1688209123133,10.39853,1923.4,1923.1,6.37602396]
[1688209123508,5.19926,1923.4,1923.2,0.00363993]
[1688209123908,6.239958,1923.4,1923.2,0.00363993]
[1688209124541,1.040698,1923.4,1923.2,0.00363993]
[1688209125457,1.040698,1923.4,1923.2,0.64160632]
[1688209126544,5.32902612,1923.5,1923.2,0.64160632]
[1688209127931,6.36968012,1923.5,1923.2,0.64160632]
[1688209129364,1.17067012,1923.5,1923.2,0.64160632]
[1688209130539,6.36955012,1923.5,1923.2,5.84123632]
[1688209130738,10.52777612,1923.5,1923.3,0.58412363]
[1688209131663,10.52777612,1923.5,1923.4,0.00362029]
[1688209132537,10.52777612,1923.5,1923.2,0.63796639]
[1688209133540,10.52777612,1923.5,1923.3,0.00363011]
[1688209134387,1.46668258,1923.6,1923.4,11.26608184]
[1688209134540,2.59858,1924.2,1923.4,11.26608184]
[1688209134541,2.59858,1924.2,1923.5,1.12660818]
[1688209134740,0.0495448,1924.5,1923.6,2.68752184]
[1688209134970,5.19652,1924.4,1923.7,12.9957]
[1688209135134,0.0495448,1924.5,1923.7,15.68322184]
[1688209135339,0.0495448,1924.5,1923.8,2.68752184]
[1688209135540,0.0495448,1924.5,1924.0,11.75294]
[1688209135741,0.0495448,1924.5,1924.0,14.34369]
[1688209136038,1.0897218,1924.5,1924.0,14.34369]
[1688209136358,6.2858818,1924.5,1924.0,14.34369]
[1688209136671,6.2858818,1924.5,1924.2,10.39384]
[1688209136876,7.47537826,1924.5,1924.2,10.39384]
[1688209138852,7.47537826,1924.5,1924.2,10.264452]
[1688209139738,12.67153826,1924.5,1924.2,10.264452]
[1688209140563,12.67153826,1924.5,1924.0,5.1974]
[1688209140564,0.01651602,1924.4,1924.0,5.1974]
[1688209140876,10.39348,1924.3,1923.9,5.19755]
[1688209141040,12.52368,1924.3,1923.9,10.39532]
[1688209141981,12.51648385,1924.3,1923.9,10.39532]
[1688209142475,18.11975484,1924.3,1923.8,5.1978]
[1688209142649,18.11975484,1924.3,1923.9,5.19775]
[1688209143060,14.16541484,1924.3,1923.9,5.19775]
[1688209143260,14.16541484,1924.3,1923.9,10.39552]
[1688209147348,18.11575484,1924.3,1923.8,11.3897305]
[1688209147553,1.37731771,1924.2,1923.8,6.1918405]
[1688209147778,11.77147771,1924.2,1923.8,11.3898805]
[1688209148265,14.36995771,1924.2,1923.8,6.1918405]
[1688209149088,11.77147771,1924.2,1923.8,11.3898805]
[1688209150160,14.36995771,1924.2,1923.8,11.3898805]
[1688209150376,14.36995771,1924.2,1923.8,6.1918405]
[1688209150580,14.36995771,1924.2,1923.8,11.3898805]
[1688209150786,14.36995771,1924.2,1923.8,6.1918405]
[1688209151382,14.36995771,1924.2,1923.8,11.3898805]
[1688209151577,14.36995771,1924.2,1923.8,0.9939605]
[1688209151778,2.79499577,1924.1,1923.8,0.9939605]
[1688209151992,12.99375,1924.0,1923.8,0.9939605]
[1688209152292,10.395,1924.0,1923.8,0.9939605]
[1688209153088,12.99375,1924.0,1923.8,0.9939605]
[1688209153255,14.57262458,1924.0,1923.8,0.9939605]
[1688209153458,11.97387458,1924.0,1923.8,0.9939605]
[1688209153999,14.57262458,1924.0,1923.8,0.9939605]
[1688209163107,14.99255728,1924.0,1923.8,0.9939605]
[1688209189010,0.4199327,1924.0,1923.8,0.9939605]
[1688209189213,10.39501,1924.0,1923.8,0.9939605]
[1688209189929,12.99376,1924.0,1923.8,0.9939605]
[1688209193478,0.42454717,1924.2,1923.8,12.7478805]
[1688209193772,5.19684,1924.3,1923.8,15.3469005]
[1688209193974,5.197,1924.2,1923.9,1.53469005]
[1688209194179,5.197,1924.2,1924.0,10.39494]
[1688209194949,5.197,1924.2,1924.0,5.19745]
[1688209196082,10.394,1924.2,1924.0,5.19745]
[1688209198468,5.197,1924.2,1924.0,5.19745]
[1688209198850,5.19686,1924.3,1924.0,11.58792301]
[1688209198851,10.39373,1924.3,1924.0,11.58792301]
[1688209199088,10.39374,1924.3,1924.0,11.58792301]